[Event "WR Chess Masters 2023"]
[Site "Duesseldorf"]
[Date "2023.02.24"]
[Round "8.5"]
[White "Giri, Anish"]
[Black "Abdusattorov, Nodirbek"]
[Result "1/2-1/2"]
[ECO "B67"]
[WhiteElo "2780"]
[BlackElo "2734"]
[Annotator "TA"]
[PlyCount "86"]
[EventDate "2023.02.16"]
[EventCountry "GER"]
[SourceTitle "playchess.com"]
[Source "ChessBase"]
[SourceQuality "1"]
[TimeControl "40/7200:20/3600:900+30"]

{[%evp 16,86,44,24,42,45,40,41,37,30,27,33,45,45,48,35,58,56,67,64,58,53,57,28,25,37,33,33,80,84,64,66,60,56,40,59,45,0,0,0,0,0,0,0,0,0,0,0,0,0,0,0,0,0,0,0,0,0,0,0,0,0,0,0,0,0,0,0,0,0,0,0,0]} 1. e4 {[%emt 0:00:04]} c5 {[%emt 0:00:23]} 2. Nf3 {[%emt 0:00:06]} Nc6 {[%emt 0:00:12]} 3. d4 {[%emt 0:00:22]} cxd4 {[%emt 0:00:10]} 4. Nxd4 {[%emt 0:00:03]} Nf6 {[%emt 0:00:12]} 5. Nc3 {[%emt 0:00:04]} d6 {[%emt 0:00:09]} 6. Bg5 {[%emt 0:00:11]} e6 {[%emt 0:00:09]} 7. Qd2 {[%emt 0:00:08]} a6 {[%emt 0:00:27]} 8. O-O-O {[%emt 0:00:08]} Bd7 {[%emt 0:00:06]} 9. Kb1 {[%emt 0:00:23]} Nxd4 {[%emt 0:01:53] is cutting edge theory. B67: Sicilian: Richter-Rauzer: 7...a6 8 0-0-0 Bd7, lines without 9 f4 Be7.} 10. Qxd4 {[%emt 0:00:07]} Be7 {[%emt 0:00:06]} 11. f4 {[%emt 0:01:51]} Bc6 {[%emt 0:00:15] White is slightly better.} 12. f5 {[%emt 0:06:56]} Qa5 {[%emt 0:09:35]} 13. Bc4 {[%emt 0:04:52]} exf5 {[%emt 0:00:10]} 14. Rhf1 {[%emt 0:03:36]} fxe4 {[%emt 0:00:06] [#]} 15. Nxe4 $146 {[%emt 0:01:18]} ({Predecessor:} 15. Bxf6 Bxf6 16. Rxf6 gxf6 17. Qxf6 Qe5 18. Qxf7+ Kd8 19. Nd5 Rc8 20. Nf4 Bd7 21. Be6 {½-½ Lagarde,M (2631)-Muradli,M (2523) Biel HTO 55th 2022 (5)}) 15... Bxe4 {[%emt 0:08:02]} (15... Nxe4 16. Qxg7) 16. Bxf6 {[%emt 0:06:22][%mdl 64] Remove Defender} Bxf6 {[%emt 0:00:44]} 17. Qxe4+ {[%emt 0:05:24]} Qe5 {[%emt 0:00:18] Black is weak on the light squares} 18. Qxb7 {[%emt 0:01:08] Active counter play!} O-O {[%emt 0:00:15] [#]} 19. Bxf7+ $1 {[%emt 0:09:14][%mdl 64] Deflection} Kh8 $1 {[%emt 0:00:02]} 20. Rfe1 {[%emt 0:05:42]} Ra7 {[%emt 0:01:32][%cal Ba8a7,Ba7f7,Bf7f2,Bf2g2][%mdl 96] Deflection} 21. Qb3 {[%emt 0:03:56]} (21. Qxa7 $2 Qxb2#) 21... Qxb2+ {[%emt 0:02:42][%mdl 64] Deflection} 22. Qxb2 {[%emt 0:00:07]} Bxb2 {[%emt 0:00:06]} 23. Kxb2 {[%emt 0:00:12]} Raxf7 {[%emt 0:00:05]} 24. Rxd6 $14 {[%emt 0:08:22][%mdl 4096] Endgame KRR-KRR} Rf2 {[%emt 0:00:02]} 25. Rxa6 {[%emt 0:01:16]} Rxg2 {[%emt 0:01:23]} 26. h3 {[%emt 0:12:27]} (26. a4 $5) 26... Rb8+ {[%emt 0:02:35] The position is equal.} 27. Kc1 {[%emt 0:00:12]} h5 {[%emt 0:03:44]} 28. Rae6 {[%emt 0:00:31]} Kh7 $1 {[%emt 0:01:53]} 29. R6e2 {[%emt 0:01:49]} Rxe2 {[%emt 0:00:00]} 30. Rxe2 $11 {[%emt 0:00:05] KR-KR} g5 {[%emt 0:00:00]} 31. c4 {[%emt 0:18:00]} Rc8 {[%emt 0:00:03]} 32. Rc2 {[%emt 0:01:19]} Kg6 {[%emt 0:00:14]} 33. Kd2 {[%emt 0:00:09]} Kf5 {[%emt 0:00:49]} 34. Ke3 {[%emt 0:01:05]} g4 {[%emt 0:00:04]} 35. hxg4+ {[%emt 0:00:39]} hxg4 {[%emt 0:00:02]} 36. Kd4 {[%emt 0:04:10]} g3 {[%emt 0:00:28]} 37. c5 {[%emt 0:00:07]} Rg8 {[%emt 0:00:04] ...g2 is the strong threat.} 38. Rg2 {[%emt 0:00:41]} Ke6 {[%emt 0:00:15]} 39. Kc4 {[%emt 0:00:56]} Kd7 {[%emt 0:00:06]} 40. Kb5 {[%emt 0:00:00]} Kc7 {[%emt 0:00:00]} 41. a4 {[%emt 0:00:46]} Rb8+ {[%emt 0:01:02]} 42. Kc4 {[%emt 0:00:04]} Rg8 {[%emt 0:00:03]} 43. Kd5 {[%emt 0:00:07]} Rg5+ {[%emt 0:00:05] A fantastic game!   Weighted Error Value: White=0.04 (flawless) /Black=0.01 (flawless)} 1/2-1/2

[Event "WR Chess Masters 2023"]
[Site "Duesseldorf"]
[Date "2023.02.25"]
[Round "9.1"]
[White "Aronian, Levon"]
[Black "Gukesh D"]
[Result "1/2-1/2"]
[ECO "D38"]
[WhiteElo "2736"]
[BlackElo "2718"]
[Annotator "TA"]
[PlyCount "48"]
[EventDate "2023.02.16"]
[EventCountry "GER"]
[SourceTitle "playchess.com"]
[Source "ChessBase"]
[SourceQuality "1"]
[TimeControl "40/7200:20/3600:900+30"]

{[%evp 20,35,0,7,3,0,0,0,0,0,0,0,0,0,0,0,0,-7]} 1. d4 {[%emt 0:00:04]} Nf6 {[%emt 0:00:15]} 2. c4 {[%emt 0:00:04]} e6 {[%emt 0:00:05]} 3. Nf3 {[%emt 0:00:05]} d5 {[%emt 0:00:05]} 4. Nc3 {[%emt 0:00:04]} Bb4 {[%emt 0:00:31]} 5. Bg5 {[%emt 0:00:06]} h6 {[%emt 0:00:46]} 6. Bxf6 {[%emt 0:00:05]} Qxf6 {[%emt 0:00:05]} 7. e3 {[%emt 0:00:05]} c5 {[%emt 0:00:22]} 8. Rc1 {[%emt 0:00:25]} dxc4 {[%emt 0:17:52]} 9. Bxc4 {[%emt 0:00:07]} O-O {[%emt 0:01:15]} 10. O-O {[%emt 0:00:09]} cxd4 {[%emt 0:00:03]} 11. Nxd4 {[%emt 0:00:04] The position is equal.} Bd7 {[%emt 0:00:33][%cal Bc8d7,Bd7c6,Bc6d5][%mdl 32] D38: Queen's Gambit Declined: Ragozin Defence (4 Nf3 Bb4).} 12. Qb3 {[%emt 0:00:07]} Nc6 {[%emt 0:00:06]} 13. Nxc6 {[%emt 0:00:05]} Bxc3 {[%emt 0:00:03]} 14. Rxc3 {[%emt 0:00:06]} Bxc6 {[%emt 0:00:03]} 15. Bb5 {[%emt 0:00:06]} Bd5 {[%emt 0:00:03]} 16. Bc4 {[%emt 0:00:04]} Bc6 {[%emt 0:00:03]} 17. Bb5 {[%emt 0:00:05]} Bd5 {[%emt 0:00:02]} 18. Bc4 {[%emt 0:00:05] [#] Not much happened in this game.   Weighted Error Value: White=0.01 (flawless) /Black=0.00 (flawless)} {Predecessor:} Be4 $146 19. Bd3 Bxd3 20. Rxd3 b6 21. Rfd1 Rfd8 22. Rxd8+ Rxd8 23. Rxd8+ Qxd8 24. g3 g6 {½-½ Kempinski,R (2565)-Tari,A (2646) CZE-chT 2122 2021 (15.2)} 1/2-1/2

[Event "WR Chess Masters 2023"]
[Site "Duesseldorf"]
[Date "2023.02.25"]
[Round "9.2"]
[White "Keymer, Vincent"]
[Black "Nepomniachtchi, Ian"]
[Result "0-1"]
[ECO "E61"]
[WhiteElo "2690"]
[BlackElo "2793"]
[Annotator "TA"]
[PlyCount "164"]
[EventDate "2023.02.16"]
[EventCountry "GER"]
[SourceTitle "playchess.com"]
[Source "ChessBase"]
[SourceQuality "1"]
[TimeControl "40/7200:20/3600:900+30"]

{[%evp 11,164,14,33,14,20,-4,-14,-11,-10,-7,-10,-10,0,0,0,0,0,-3,0,0,0,0,0,-5,-2,-11,-4,0,0,0,-7,0,-3,-16,-10,-19,-10,-17,0,-41,-47,-37,-31,-54,-16,-37,-30,-21,0,0,0,-30,0,-11,0,-30,-22,-30,-20,-56,-22,-16,-14,-35,-42,-30,-14,-8,0,0,0,-12,0,0,0,0,0,0,0,0,0,0,0,0,0,0,0,0,0,0,0,0,0,0,0,0,0,0,0,0,0,0,0,0,0,0,0,-629,-566,-514,-35,-562,-662,-658,-652,-659,-620,-668,-527,-656,-629,-596,-566,-656,-646,-605,-624,-2537,-1916,-29967,-29970,-29970,-29971,-29971,-29969,-29985,-29980,-29986,-29987,-29993,-29992,-29994,-29983,-29984,-29982,-29982,-29983,-29985,-29982,-29983,-29984,-29982,-29983,-29983,-29984]} 1. d4 {[%emt 0:00:02]} Nf6 {[%emt 0:00:09]} 2. c4 {[%emt 0:00:02]} g6 {[%emt 0:00:26]} 3. Nf3 {[%emt 0:01:09]} Bg7 {[%emt 0:00:07]} 4. e3 {[%emt 0:00:04]} O-O {[%emt 0:00:39]} 5. Be2 {[%emt 0:00:05]} d6 {[%emt 0:00:25]} 6. Nc3 {[%emt 0:00:41]} Nbd7 {[%emt 0:00:26]} 7. h3 {[%emt 0:06:17] E61: King's Indian: Early deviations for White, including Smyslov System.} e5 {[%emt 0:02:31]} 8. b4 {[%emt 0:00:17] [#]} exd4 $146 {[%emt 0:03:28]} ({Predecessor:} 8... c6 9. Rb1 e4 10. Nd2 d5 11. a4 Re8 12. b5 Nf8 13. Ba3 a6 14. bxc6 bxc6 {0-1 Finckh,K (1427)-Hinteregger,A (2215) Neumarkt am Wallersee op 09th 2010 (1)}) 9. exd4 {[%emt 0:00:11] [#] The position is equal.} d5 $1 {[%emt 0:00:46]} 10. O-O {[%emt 0:00:08]} dxc4 {[%emt 0:02:49]} 11. Bxc4 {[%emt 0:00:06]} Nb6 {[%emt 0:00:08]} 12. Bb3 {[%emt 0:00:31]} Nbd5 {[%emt 0:04:09]} 13. Nxd5 {[%emt 0:05:39]} Nxd5 {[%emt 0:01:28]} 14. b5 {[%emt 0:01:12]} a6 {[%emt 0:01:19]} 15. bxa6 {[%emt 0:05:00]} Rxa6 {[%emt 0:01:44]} 16. Bg5 {[%emt 0:00:29]} Qd6 {[%emt 0:01:03]} 17. Qd2 {[%emt 0:04:07]} Be6 {[%emt 0:01:15]} 18. Rfe1 {[%emt 0:13:42]} c6 {[%emt 0:00:59]} 19. Rab1 {[%emt 0:22:07]} Raa8 {[%emt 0:02:09]} 20. Bh6 {[%emt 0:12:37]} Rfe8 {[%emt 0:05:03]} 21. Bxg7 {[%emt 0:04:13]} Kxg7 {[%emt 0:01:53]} 22. Re5 {[%emt 0:00:06]} h6 {[%emt 0:06:38]} 23. Rbe1 {[%emt 0:04:12]} f6 {[%emt 0:01:22]} 24. R5e4 {[%emt 0:00:23]} Bf7 {[%emt 0:00:23]} 25. Nh2 {[%emt 0:05:59][%cal Bf3h2,Bh2f1,Bf1e3][%mdl 32]} Rxe4 {[%emt 0:02:23]} 26. Rxe4 {[%emt 0:00:05]} h5 {[%emt 0:04:52]} 27. Nf1 {[%emt 0:03:25]} Rd8 {[%emt 0:00:52]} 28. Qe1 {[%emt 0:02:33]} (28. Ne3 {is interesting.} Rd7 29. Nxd5 Bxd5 30. Re8) 28... Rd7 {[%emt 0:01:49]} 29. Ne3 $1 {[%emt 0:03:41]} Nb6 {[%emt 0:08:50]} (29... f5 $5 {[%cal Rf5e4]} 30. Re5 Nf4 31. Rxf5 Bxb3 32. axb3 Qxd4 $15) 30. Qc3 {[%emt 0:01:19]} Nd5 {[%emt 0:04:50][%cal Bb6d5,Bd5c7,Bc7e6][%mdl 32]} 31. Qe1 {[%emt 0:00:28]} Nc7 {[%emt 0:02:14]} (31... f5 $5 {[%cal Rf5e4]} 32. Re5 Nf4 33. Rxf5 Bxb3 34. axb3 Qxd4 $15) 32. Bxf7 {[%emt 0:03:51]} Rxf7 {[%emt 0:00:09]} 33. Nc2 {[%emt 0:03:25]} Rd7 {[%emt 0:01:08]} 34. h4 {[%emt 0:01:10]} Kf7 {[%emt 0:01:52]} 35. Qe3 {[%emt 0:01:31]} Ne6 {[%emt 0:02:14]} 36. a3 {[%emt 0:02:15]} (36. Qh6 Qd5 37. Re2 (37. Qh7+ Ng7 $17) 37... Qc4 $17) 36... Ng7 {[%emt 0:02:35]} 37. Qb3+ {[%emt 0:01:45]} Qd5 {[%emt 0:00:20]} 38. Qd3 {[%emt 0:00:27]} Ne6 {[%emt 0:02:29] White must now prevent ...Nc5.} 39. Nb4 {[%emt 0:03:50]} Qd6 {[%emt 0:09:23][%cal Re6d4]} 40. Qb3 {[%emt 0:00:00]} (40. Qc4 {looks sharper.} f5 41. Re1 Kf6 42. Nd3) 40... Re7 {[%emt 0:00:00]} 41. Nc2 {[%emt 0:15:05]} Kf8 {[%emt 0:09:21][%cal Oe6c5]} 42. Qe3 {[%emt 0:02:04]} Ng7 {[%emt 0:02:07]} 43. Rxe7 {[%emt 0:03:00]} Qxe7 $11 {[%emt 0:00:03][%mdl 4096] Endgame KQN-KQN} 44. Qg3 {[%emt 0:00:07]} Qe4 {[%emt 0:03:58]} 45. Qd6+ {[%emt 0:06:34]} Kf7 {[%emt 0:00:58]} 46. Ne3 {[%emt 0:00:20]} Qe7 {[%emt 0:02:47] Active counter play!} 47. Qb8 {[%emt 0:01:07]} Qd7 {[%emt 0:00:41]} 48. a4 {[%emt 0:09:23]} Ne6 {[%emt 0:02:39]} (48... Qxd4 $2 49. Qxb7+ Kg8 50. Qxc6 Qa1+ 51. Nf1 $18) 49. Nc4 {[%emt 0:00:41]} Ke7 {[%emt 0:01:32]} 50. Na5 {[%emt 0:02:31]} Nd8 {[%emt 0:02:26]} (50... Qxd4 51. Qxb7+ (51. Nxb7 Qd1+ 52. Kh2 Qd4 $11) 51... Qd7 52. Nxc6+ (52. Qxc6 Qxc6 53. Nxc6+ Kd6 $14) 52... Kd6 53. Qxd7+ Kxd7 54. Nb4 $16) 51. Qf4 {[%emt 0:01:30]} Qd6 {[%emt 0:01:02]} 52. Qe4+ {[%emt 0:00:31]} Kf7 {[%emt 0:02:49] Hoping for ...Qb4.} 53. Qb1 {[%emt 0:00:37] Dodges Qb4} Qc7 {[%emt 0:01:10]} 54. Qb4 {[%emt 0:00:31]} Qe7 {[%emt 0:00:23]} 55. Qb3+ {[%emt 0:01:42]} Kg7 {[%emt 0:00:11] ...Qe1+ would be deadly.} 56. Qb6 {[%emt 0:01:25]} Qe1+ {[%emt 0:02:20]} 57. Kh2 {[%emt 0:00:05]} Nf7 {[%emt 0:00:06]} 58. Nxb7 {[%emt 0:07:39]} Qxf2 {[%emt 0:01:57]} 59. a5 $2 {[%emt 0:01:19][%mdl 8192]} (59. Nd8 $11) 59... Qxh4+ $19 {[%emt 0:00:42]} 60. Kg1 {[%emt 0:00:00]} Qe1+ {[%emt 0:00:00]} 61. Kh2 {[%emt 0:00:08] [#] This costs White the game.} g5 $1 {[%emt 0:01:50][%cal Bg6g5,Bg5g4,Bg4g3][%mdl 32] ( -> ...Nh6)} 62. Qc7 {[%emt 0:06:18]} Qh4+ {[%emt 0:02:07]} 63. Kg1 {[%emt 0:00:05]} Qxd4+ {[%emt 0:00:05]} 64. Kf1 {[%emt 0:00:42]} Qd1+ {[%emt 0:01:15]} 65. Kf2 {[%emt 0:00:05]} Qd2+ {[%emt 0:00:07]} 66. Kf1 {[%emt 0:00:19]} g4 {[%emt 0:03:38]} 67. a6 {[%emt 0:07:12][%cal Ob7d8]} Qd3+ {[%emt 0:00:27]} 68. Kf2 {[%emt 0:00:04][%cal Ob7d8]} Kg6 {[%emt 0:04:00] Strongly threatening ...Ne5.} 69. Qxc6 {[%emt 0:03:07]} Ne5 {[%emt 0:00:50]} 70. Qc1 {[%emt 0:00:48]} g3+ {[%emt 0:00:40] Black mates.} 71. Ke1 {[%emt 0:00:06]} Qe4+ {[%emt 0:00:23]} 72. Kf1 {[%emt 0:00:40]} Qf5+ {[%emt 0:03:23]} 73. Kg1 {[%emt 0:00:07]} Qf2+ {[%emt 0:00:11]} 74. Kh1 {[%emt 0:00:04]} Qd4 {[%emt 0:00:05]} 75. Qc5 {[%emt 0:01:46]} Qh4+ {[%emt 0:00:35]} 76. Kg1 {[%emt 0:00:05]} Nf3+ {[%emt 0:00:06][%mdl 64] Promotion} 77. Kf1 {[%emt 0:00:27]} Qh1+ {[%emt 0:00:07][%mdl 64] Deflection} 78. Ke2 {[%emt 0:00:03]} Qxg2+ {[%emt 0:00:04]} 79. Ke3 {[%emt 0:00:53]} Qf2+ {[%emt 0:00:13]} 80. Ke4 {[%emt 0:00:52]} Ne5 {[%emt 0:02:03]} 81. Qd5 {[%emt 0:01:05]} Qf3+ {[%emt 0:00:45]} 82. Kd4 {[%emt 0:00:04]} Nc6+ {[%emt 0:00:08] Weighted Error Value: White=0.16 (very precise) /Black=0.05 (flawless)} 0-1

[Event "WR Chess Masters 2023"]
[Site "Duesseldorf"]
[Date "2023.02.25"]
[Round "9.3"]
[White "Abdusattorov, Nodirbek"]
[Black "So, Wesley"]
[Result "1/2-1/2"]
[ECO "E29"]
[WhiteElo "2734"]
[BlackElo "2766"]
[Annotator "TA"]
[PlyCount "137"]
[EventDate "2023.02.16"]
[EventCountry "GER"]
[SourceTitle "playchess.com"]
[Source "ChessBase"]
[SourceQuality "1"]
[TimeControl "40/7200:20/3600:900+30"]

{[%evp 19,137,-22,-19,-53,-54,-40,-28,-20,-26,-31,0,-8,49,51,55,37,30,36,36,36,36,36,36,26,36,27,36,33,26,26,26,26,31,35,43,12,66,66,66,66,66,66,83,83,83,83,83,83,99,83,83,66,66,66,66,33,66,66,66,0,0,0,66,66,66,33,66,66,66,9,83,83,83,83,83,8,83,83,83,83,83,83,83,83,83,83,83,83,83,83,83,83,83,83,83,83,83,83,83,83,83,6,32,0,83,83,83,0,0,0,83,83,83,0,0,0,83,83,83,83]} 1. d4 {[%emt 0:00:05]} Nf6 {[%emt 0:01:07]} 2. c4 {[%emt 0:00:17]} e6 {[%emt 0:00:04]} 3. Nc3 {[%emt 0:00:22]} Bb4 {[%emt 0:00:05]} 4. e3 {[%emt 0:00:08]} c5 {[%emt 0:00:05]} 5. a3 {[%emt 0:00:06]} Bxc3+ {[%emt 0:02:01]} 6. bxc3 {[%emt 0:00:18]} O-O {[%emt 0:00:28]} 7. Bd3 {[%emt 0:00:24]} Nc6 {[%emt 0:01:14][%cal Bb8c6,Bc6a5,Ba5c4][%mdl 32]} 8. Ne2 {[%emt 0:00:17]} b6 {[%emt 0:00:14]} 9. e4 {[%emt 0:00:16]} Ne8 {[%emt 0:00:06]} 10. O-O {[%emt 0:00:09]} Ba6 {[%emt 0:00:09]} 11. Qc2 {[%emt 0:00:10] E29: Nimzo-Indian: Sämisch: 5...0-0 6 e3 c5 7 Bd3 Nc6.} Na5 {[%emt 0:20:19]} 12. e5 {[%emt 0:01:02]} f5 {[%emt 0:02:04] [#]} 13. Nf4 $146 {[%emt 0:03:12] Black has an edge.} ({Predecessor:} 13. exf6 Nxf6 14. Bf4 Bxc4 15. Bd6 Bxd3 16. Qxd3 c4 17. Qc2 Rf7 18. Rad1 Nd5 19. Ng3 {1-0 Bouget,A (2211)-Karas,M (2306) Titled Tuesday intern Qual1 4th April blitz 2017 (6)}) 13... Bxc4 {[%emt 0:11:23]} 14. Bxc4 {[%emt 0:01:17]} Nxc4 {[%emt 0:00:03]} 15. Qa2 {[%emt 0:00:41]} b5 {[%emt 0:16:10]} ({Better is} 15... Na5 $1 $11) 16. a4 $36 {[%emt 0:00:57][%mdl 2048] White has good play.} cxd4 {[%emt 0:00:51]} 17. axb5 {[%emt 0:04:28]} Nxe5 {[%emt 0:00:50]} 18. cxd4 {[%emt 0:00:51]} Ng6 {[%emt 0:08:29]} 19. d5 {[%emt 0:01:53]} Nxf4 {[%emt 0:09:05]} 20. Bxf4 {[%emt 0:00:28]} Nc7 {[%emt 0:00:06]} 21. dxe6 {[%emt 0:01:19]} dxe6 {[%emt 0:00:07]} 22. Rfe1 {[%emt 0:05:22]} Re8 {[%emt 0:03:40]} ({Not} 22... Nd5 23. Rxe6 Nc3 24. Qb2 $16) 23. Bxc7 {[%emt 0:01:18]} Qxc7 {[%emt 0:00:04]} 24. Rxe6 {[%emt 0:00:06]} Rxe6 {[%emt 0:00:49]} 25. Qxe6+ {[%emt 0:00:12]} Qf7 {[%emt 0:00:05]} 26. Qxf7+ {[%emt 0:00:52]} Kxf7 {[%emt 0:00:02][%mdl 4096] Endgame KR-KR} 27. b6 {[%emt 0:00:31]} a5 {[%emt 0:02:11]} (27... a6 $1 $11) 28. b7 $1 {[%emt 0:00:06]} Rb8 {[%emt 0:00:04]} 29. Rxa5 {[%emt 0:00:05]} Rxb7 {[%emt 0:00:05][%cal Rb7b1] [#]} 30. Rxf5+ {[%emt 0:00:06]} Kg6 {[%emt 0:02:59][%cal Rb7b1]} 31. g4 {[%emt 0:00:30]} Rb4 {[%emt 0:00:05]} 32. h3 {[%emt 0:00:27]} h6 {[%emt 0:00:06]} 33. Kg2 {[%emt 0:00:20]} Rb3 {[%emt 0:00:37]} 34. Re5 {[%emt 0:00:57]} Kf6 {[%emt 0:06:38]} 35. Ra5 {[%emt 0:03:04]} g5 {[%emt 0:04:47]} 36. f3 {[%emt 0:01:58]} Kg6 {[%emt 0:02:49]} 37. Rd5 {[%emt 0:00:11]} Rb2+ {[%emt 0:01:12]} 38. Kg3 {[%emt 0:00:06]} Rb3 {[%emt 0:00:04]} 39. Kf2 {[%emt 0:00:30]} ({White should try} 39. Ra5 $14) 39... Rb2+ $1 $11 {[%emt 0:00:43]} 40. Kg3 {[%emt 0:00:00]} (40. Ke3 $11) 40... Rb3 $1 $14 {[%emt 0:00:00]} 41. Rd2 {[%emt 0:00:14]} Ra3 {[%emt 0:00:33]} 42. Kf2 {[%emt 0:00:15]} Ra7 {[%emt 0:08:57]} 43. Rd6+ {[%emt 0:01:55]} Kg7 {[%emt 0:00:23]} 44. Rd3 {[%emt 0:00:07]} (44. Re6 $14) 44... Ra2+ {[%emt 0:00:52] [#]} (44... h5 $11) 45. Kg3 $1 $16 {[%emt 0:00:06]} Ra7 {[%emt 0:00:03][%cal Oh6h5]} 46. h4 {[%emt 0:00:09][%cal Bh3h4,Bh4h5][%mdl 32]} Rf7 {[%emt 0:00:09]} 47. Rd5 {[%emt 0:01:07]} (47. h5 $16) 47... Kg6 {[%emt 0:01:53]} (47... gxh4+ $11 48. Kg2 (48. Kxh4 Rxf3 49. Rd6 Rf6 $11) 48... Rc7) 48. h5+ {[%emt 0:00:14]} Kg7 {[%emt 0:00:06]} 49. Re5 {[%emt 0:00:06]} Ra7 {[%emt 0:00:29]} 50. Kf2 {[%emt 0:00:06]} Kf6 {[%emt 0:04:05]} 51. Rf5+ {[%emt 0:00:11]} Kg7 {[%emt 0:00:11]} 52. Rd5 {[%emt 0:00:32]} Ra2+ {[%emt 0:02:29]} 53. Ke3 {[%emt 0:00:01]} Ra7 {[%emt 0:00:06]} 54. Ke4 {[%emt 0:00:32]} Rf7 {[%emt 0:00:49]} 55. Rd3 {[%emt 0:00:13]} Rf8 {[%emt 0:02:16]} 56. Rc3 {[%emt 0:00:47]} Rf7 {[%emt 0:00:22]} 57. Ke5 {[%emt 0:00:07]} Kh7 {[%emt 0:02:44]} 58. Kd6 {[%emt 0:00:31] White wants to mate with Rc7.} Rf6+ {[%emt 0:00:34]} 59. Kd7 {[%emt 0:01:54]} Rf7+ {[%emt 0:03:47]} 60. Ke8 {[%emt 0:00:00]} ({White should play} 60. Ke6 $16 Kg7 61. Ra3) 60... Kg7 $11 {[%emt 0:00:00]} 61. Re3 {[%emt 0:00:41] White threatens Re7 and mate.} Rf8+ {[%emt 0:04:43]} (61... Kf6 $11) 62. Kd7 $16 {[%emt 0:00:02]} Rf4 {[%emt 0:03:21]} 63. Re7+ {[%emt 0:01:01]} (63. Ke6 $16) 63... Kg8 $11 {[%emt 0:05:13]} 64. Re6 {[%emt 0:00:12]} Kg7 {[%emt 0:01:54]} (64... Kh7 $1 $11) 65. Re3 $16 {[%emt 0:00:57]} Kg8 {[%emt 0:03:55]} 66. Re6 {[%emt 0:01:47]} (66. Ke6 $16) 66... Kg7 $11 {[%emt 0:01:22]} 67. Re3 {[%emt 0:00:06]} (67. Kd6 $11) 67... Kg8 $1 $16 {[%emt 0:00:05]} 68. Ke6 {[%emt 0:00:05]} Kg7 {[%emt 0:02:50]} 69. Rd3 {[%emt 0:00:08] Weighted Error Value: White=0.12 (very precise) /Black=0.10 (very precise)} 1/2-1/2

[Event "WR Chess Masters 2023"]
[Site "Duesseldorf"]
[Date "2023.02.25"]
[Round "9.4"]
[White "Duda, Jan-Krzysztof"]
[Black "Giri, Anish"]
[Result "1/2-1/2"]
[ECO "D10"]
[WhiteElo "2729"]
[BlackElo "2780"]
[Annotator "TA"]
[PlyCount "60"]
[EventDate "2023.02.16"]
[EventCountry "GER"]
[SourceTitle "playchess.com"]
[Source "ChessBase"]
[SourceQuality "1"]
[TimeControl "40/7200:20/3600:900+30"]

{[%evp 10,60,39,31,20,37,33,37,33,34,36,38,36,0,0,0,26,17,70,35,69,72,65,70,53,16,20,18,16,0,46,-16,-19,-26,-22,-23,-21,-26,0,-19,-31,-23,-16,-20,-20,-17,-20,-23,-10,-12,-8,-24,-3]} 1. d4 {[%emt 0:00:39]} d5 {[%emt 0:00:05]} 2. c4 {[%emt 0:00:15]} c6 {[%emt 0:00:05]} 3. Nc3 {[%emt 0:03:06]} Nf6 {[%emt 0:00:08]} 4. e3 {[%emt 0:00:11]} Bf5 {[%emt 0:00:05]} 5. cxd5 {[%emt 0:00:47]} cxd5 {[%emt 0:00:07]} 6. Qb3 {[%emt 0:00:06]} Nc6 {[%emt 0:00:09] Nowadays more popular than 6...Bc8. D10: Slav Defence: 3 cxd5 (without early Nf3) and 3 Nc3.} 7. Qxb7 {[%emt 0:00:22]} Bd7 $1 {[%emt 0:00:22] [#] And now ...Rb8 would win.} 8. Qb3 {[%emt 0:00:25]} Rb8 {[%emt 0:00:14] White is slightly better.} 9. Qd1 {[%emt 0:00:07]} e5 {[%emt 0:00:07]} 10. Nf3 {[%emt 0:02:52]} Bd6 {[%emt 0:00:09]} 11. Be2 {[%emt 0:04:06]} e4 {[%emt 0:01:51]} 12. Nd2 {[%emt 0:00:06]} h5 {[%emt 0:01:37] [#]} 13. a3 $146 {[%emt 0:04:12]} ({Predecessor:} 13. f3 Qe7 14. fxe4 Nxe4 15. Ndxe4 dxe4 16. g3 h4 17. g4 O-O 18. O-O Nb4 19. a3 {0-1 Holt,C (2553)-Matlakov,M (2671) Titled Tuesday intern op 07th Jun Late blitz 2022 (9)}) 13... a5 {[%emt 0:15:49]} ({Black should try} 13... Kf8 $11) 14. h3 {[%emt 0:07:38]} (14. Nb5 $5 {[%cal Rb5d6]} Be7 15. O-O $14) 14... Ne7 {[%emt 0:06:02]} 15. Nb3 {[%emt 0:04:50]} Qb6 {[%emt 0:09:26] [#]} 16. Nc5 {[%emt 0:01:22]} Bxc5 {[%emt 0:00:08]} 17. dxc5 {[%emt 0:10:19]} (17. Na4 $5 {[%cal Ra4b6]} Bb4+ 18. axb4 Qxb4+ 19. Nc3 $14) 17... Qxc5 {[%emt 0:00:09]} 18. a4 {[%emt 0:00:23]} O-O {[%emt 0:03:49]} 19. Nb5 {[%emt 0:00:56]} Bxb5 {[%emt 0:19:17]} (19... Nf5 $11) 20. axb5 {[%emt 0:12:53]} (20. Bxb5 $14 Nf5 21. O-O) 20... Nf5 $1 $11 {[%emt 0:00:50]} 21. Bd2 {[%emt 0:07:40]} d4 $1 {[%emt 0:02:30][%cal Rd4e3] Prevents Bc3.} 22. exd4 {[%emt 0:01:57]} Nxd4 {[%emt 0:01:13] ...Nc2+ is the strong threat.} 23. Rc1 {[%emt 0:00:36] Prevents Nc2+.} (23. Rxa5 $2 {too greedy.} e3 24. fxe3 Nc2+ 25. Kf2 (25. Kf1 $2 Rbd8 $19) 25... Ne4+ 26. Kg1 Nxe3 $19) 23... Qf5 {[%emt 0:11:58]} 24. Bxa5 {[%emt 0:03:12]} Nxe2 {[%emt 0:01:03]} 25. Qxe2 {[%emt 0:00:10]} Qxb5 {[%emt 0:06:30]} 26. Qxb5 {[%emt 0:01:07]} Rxb5 {[%emt 0:00:02]} 27. Bc3 {[%emt 0:00:16]} Nd5 {[%emt 0:00:04]} 28. O-O {[%emt 0:00:35]} Nxc3 {[%emt 0:03:17]} 29. bxc3 {[%emt 0:00:31]} Rc8 {[%emt 0:00:01]} 30. f3 {[%emt 0:01:48]} Rbc5 {[%emt 0:00:12] Weighted Error Value: White=0.12 (very precise) /Black=0.12 (very precise)} 1/2-1/2